bitfinex/quotes_SOLUSD_20241009
["timestamp","ask_amount","ask_price","bid_price","bid_amount"]
[1728457774402,1.74279257,143.46,143.41,17.4315]
[1728457774897,6.9713,143.45,143.41,17.4315]
[1728457775101,8.71369257,143.46,143.41,24.4042]
[1728457775505,6.9711,143.45,143.41,24.4042]
[1728457775796,6.9711,143.45,143.41,17.4315]
[1728457776912,6.972,143.43,143.39,6.9738]
[1728457777793,6.9716,143.44,143.39,6.9738]
[1728457779102,6.9722,143.43,143.39,6.9738]
[1728457781090,6.9722,143.43,143.38,40.3397]
[1728457782283,1.74308778,143.46,143.38,40.3397]
[1728457782483,6.9726,143.42,143.38,40.3398]
[1728457782685,1.74308778,143.46,143.38,33.3654]
[1728457782902,6.973,143.41,143.38,15.9296]
[1728457784389,1.74335548,143.44,143.38,15.9296]
[1728457784603,6.9721,143.43,143.38,22.9036]
[1728457785014,6.9721,143.43,143.38,15.9296]
[1728457785216,1.74335548,143.44,143.39,1.39458604]
[1728457785502,8.71525548,143.44,143.39,17.4342]
[1728457785812,8.71525548,143.44,143.4,6.9734]
[1728457786186,8.71525548,143.44,143.39,17.4342]
[1728457786400,8.71525548,143.44,143.39,24.408]
[1728457788602,1.74335548,143.44,143.39,17.4342]
[1728457788803,6.9725,143.42,143.39,17.4342]
[1728457789505,6.9725,143.42,143.38,15.9296]
[1728457789699,6.9725,143.42,143.38,17.32427293]
[1728457789911,6.9725,143.42,143.38,22.9039]
[1728457790612,1.74335548,143.44,143.38,15.9296]
[1728457790918,6.9731,143.41,143.38,15.9296]
[1728457792718,6.9726,143.42,143.38,15.9296]
[1728457795401,1.74333451,143.41,143.38,15.9296]
[1728457795593,6.9735,143.4,143.37,6.5949]
[1728457797496,6.9744,143.38,143.37,6.5949]
[1728457797822,6.9745,143.38,143.35,15.3806]
[1728457799335,1.74381457,143.37,143.34,0.8602309]
[1728457799615,6.9759,143.35,143.34,0.8602309]
[1728457800411,23.776884,143.38,143.34,0.8602309]
[1728457800635,6.9755,143.36,143.34,0.8602309]
[1728457800923,39.5274234,143.4,143.34,0.8602309]
[1728457800924,8.71991118,143.35,143.34,0.8602309]
[1728457801139,6.9759,143.35,143.34,0.8602309]
[1728457803416,6.9778,143.31,143.28,16.2193]
[1728457803640,6.9776,143.32,143.28,16.2193]
[1728457804313,6.9784,143.3,143.28,16.2193]
[1728457804496,6.9784,143.3,143.26,6.3454]
[1728457805627,8.72363117,143.29,143.26,6.3454]
[1728457805805,1.74493595,143.28,143.26,6.3454]
[1728457806122,1.74493595,143.28,143.24,39.9741]
[1728457806123,8.72433595,143.28,143.24,39.9741]
[1728457806299,8.72484538,143.27,143.24,32.993]
[1728457806509,20.03746651,143.32,143.24,32.993]
[1728457806510,6.9794,143.28,143.24,32.993]
[1728457806709,1.74515494,143.27,143.24,32.993]
[1728457807009,7.24204969,143.31,143.24,15.5401]
[1728457807010,1.74515744,143.3,143.24,15.5401]
[1728457807222,15.96509103,143.31,143.26,6.9802]
[1728457808811,8.98709103,143.31,143.24,32.9926]
[1728457809024,30.755284,143.3,143.25,8.3766308]
[1728457809316,8.7233135,143.3,143.24,39.0185]
[1728457809524,8.7233135,143.3,143.25,6.9807]
[1728457810026,1.7449135,143.3,143.24,21.566]
[1728457810210,1.7449135,143.3,143.26,24.43]
[1728457811307,8.7233135,143.3,143.26,24.43]
[1728457812530,8.7233135,143.3,143.26,17.4498]
[1728457812902,6.9788,143.29,143.25,6.9807]
[1728457813106,1.74497787,143.28,143.24,21.566]
[1728457813305,1.74497787,143.28,143.24,28.5472]
[1728457814225,1.74497787,143.28,143.24,21.566]
[1728457814405,7.24204969,143.31,143.24,21.566]
[1728457814406,6.9799,143.27,143.24,21.566]
[1728457814606,6.9793,143.28,143.24,28.5472]
[1728457815422,6.9793,143.28,143.24,29.94320878]
[1728457815902,6.9793,143.28,143.24,28.5472]
[1728457817017,1.74501083,143.3,143.25,6.9805]
[1728457817217,6.9789,143.29,143.25,8.3765016]
[1728457817813,8.72351083,143.3,143.26,6.9802]
[1728457818325,6.9789,143.29,143.25,8.3764961]
[1728457819425,6.9789,143.29,143.25,8.37663107]
[1728457819626,6.9789,143.29,143.25,6.9807]
[1728457820432,1.74492166,143.28,143.25,6.9807]
[1728457820637,1.74492166,143.28,143.24,21.566]
[1728457820823,1.74492166,143.28,143.24,28.5472]
[1728457821219,1.74492166,143.28,143.24,29.94319684]
[1728457821936,8.72390268,143.29,143.24,29.94319684]
[1728457822230,8.72390268,143.29,143.24,28.5472]
[1728457822447,8.72390268,143.29,143.24,29.94320061]
[1728457823135,1.74499897,143.3,143.26,24.4305]
[1728457823440,1.74499897,143.3,143.25,8.37654763]
[1728457823613,8.72339897,143.3,143.25,8.37654763]
[1728457824140,8.72339897,143.3,143.25,6.9807]
[1728457825243,1.74499897,143.3,143.27,6.9798]
[1728457825422,8.72339897,143.3,143.26,6.9801]
[1728457827448,14.26038618,143.3,143.25,17.4514]
[1728457827742,1.74480791,143.29,143.25,24.4321]
[1728457828921,14.26038618,143.3,143.25,17.4514]
[1728457829121,7.28198618,143.3,143.27,17.449]
[1728457829330,6.9773,143.33,143.28,8.37452835]
[1728457829835,8.72174205,143.33,143.28,8.37452835]
[1728457830038,8.72174205,143.33,143.28,1.39562835]
[1728457830226,7.28063169,143.34,143.31,6.9774]
[1728457830431,8.71984165,143.36,143.31,6.9774]
[1728457830432,6.9759,143.35,143.31,6.9774]
[1728457831226,8.72013215,143.35,143.31,6.9774]
[1728457831839,8.72013215,143.35,143.3,23.41398314]
[1728457831840,1.74423215,143.35,143.3,22.0186]
[1728457832045,6.9772,143.33,143.3,22.0186]
[1728457832427,1.74423215,143.35,143.3,22.0186]
[1728457832428,6.9778,143.31,143.3,22.0186]
[1728457833545,6.9775,143.32,143.3,22.0186]
[1728457834127,6.977,143.33,143.3,22.0186]
[1728457834336,6.9767,143.34,143.3,22.0186]
[1728457834535,8.7212407,143.33,143.3,22.0186]
[1728457834740,1.74444006,143.32,143.3,22.0186]
[1728457834943,6.9769,143.33,143.3,22.0186]
[1728457835536,1.74449351,143.32,143.3,22.0186]
[1728457836037,6.9769,143.33,143.3,22.0186]
[1728457836633,1.74449121,143.32,143.3,22.0186]
[1728457836945,6.9769,143.33,143.3,22.0186]
[1728457837949,6.9765,143.34,143.3,28.9969]
[1728457838647,6.9765,143.34,143.3,22.0186]
[1728457838951,8.72126019,143.33,143.3,22.0186]
[1728457839153,6.9769,143.33,143.3,22.0186]
[1728457840438,6.9769,143.33,143.3,15.655]
[1728457840950,6.9769,143.33,143.29,8.37421359]
[1728457841153,6.9769,143.33,143.29,6.9787]
[1728457841332,6.9769,143.33,143.29,8.37421604]
[1728457841734,6.9769,143.33,143.29,6.9787]
[1728457843449,8.72130039,143.33,143.29,6.9787]
[1728457843632,8.72130039,143.33,143.29,8.37421833]
[1728457843955,6.9769,143.33,143.29,8.37421833]
[1728457844649,14.2566905,143.34,143.29,1.39551833]
[1728457844953,6.9765,143.34,143.3,6.9782]
[1728457845456,6.9777,143.32,143.28,24.4268]
[1728457845829,1.7442807,143.34,143.28,24.4268]
[1728457846153,6.977,143.33,143.28,24.4268]
[1728457846948,6.977,143.33,143.29,6.9787]
[1728457847461,6.9774,143.32,143.28,24.427]
[1728457848248,23.776884,143.34,143.28,17.4478]
[1728457848448,6.9779,143.31,143.28,17.4478]
[1728457848649,6.9779,143.31,143.27,6.9796]
[1728457848843,23.776884,143.34,143.26,6.9802]
[1728457848844,8.72319403,143.3,143.26,6.9802]
[1728457849037,8.72319403,143.3,143.25,17.4513]
[1728457849038,6.9785,143.3,143.25,24.432]
[1728457849244,6.9793,143.28,143.24,6.9812]
[1728457850151,6.9788,143.29,143.24,6.9812]
[1728457851036,6.9788,143.29,143.25,6.9807]
[1728457851555,6.9788,143.29,143.25,8.37663556]
[1728457851749,6.9788,143.29,143.25,6.9807]
[1728457852142,1.74492212,143.28,143.25,6.9807]
[1728457852543,6.9788,143.29,143.25,6.9807]
[1728457853350,6.9797,143.28,143.24,24.4339]
[1728457853542,8.72382121,143.29,143.25,1.39593697]
[1728457855760,8.72382121,143.29,143.24,24.4339]
[1728457857260,8.72382121,143.29,143.25,1.39593678]
[1728457857466,7.27588624,143.31,143.25,1.39593678]
[1728457857769,14.25388624,143.31,143.26,6.9802]
[1728457857956,7.27588624,143.31,143.28,6.9793]
[1728457858870,7.27588624,143.31,143.27,6.9797]
[1728457859242,14.25388624,143.31,143.27,6.9797]
[1728457859442,1.7446514,143.3,143.27,6.9797]
[1728457859743,14.25388624,143.31,143.27,6.9797]
[1728457860147,1.74469072,143.3,143.27,6.9797]
[1728457860466,6.9783,143.3,143.24,1.39576335]
[1728457860636,8.72304647,143.3,143.26,6.9803]
[1728457861244,8.72304647,143.3,143.21,48.02721682]
[1728457861447,8.72304647,143.3,143.25,24.4322]
[1728457862071,6.9789,143.29,143.25,24.4322]
[1728457862275,1.74492053,143.28,143.25,17.4515]
[1728457862974,8.72432053,143.28,143.24,6.9812]
[1728457863160,6.9794,143.28,143.24,6.9812]
[1728457863765,8.72503386,143.27,143.23,6.9816]
[1728457864069,6.9803,143.26,143.22,24.4369]
[1728457864547,30.756784,143.27,143.23,1.39619674]
[1728457865254,8.72563499,143.26,143.22,24.4369]
[1728457865452,6.9799,143.27,143.23,1.39532558]
[1728457865640,1.74520395,143.26,143.22,24.4369]
[1728457866048,8.7251478,143.27,143.23,8.37779824]
[1728457866775,15.99809821,143.28,143.24,6.9812]
[1728457866955,8.72459804,143.28,143.24,6.9812]
[1728457869049,1.74519804,143.28,143.24,6.9812]
[1728457870356,1.74519804,143.28,143.23,1.39604444]
[1728457870557,14.25073672,143.3,143.25,8.37664274]
[1728457872692,6.978,143.31,143.27,6.9797]
[1728457872850,15.99317731,143.32,143.27,8.37546403]
[1728457873259,15.99317731,143.32,143.27,6.9797]
[1728457873660,15.99317731,143.32,143.28,6.9793]
[1728457873856,1.74460342,143.31,143.26,17.4502]
[1728457874069,1.74460342,143.31,143.27,6.9796]
[1728457875262,6.9774,143.32,143.28,8.37488334]
[1728457875473,1.74460444,143.31,143.28,6.9792]
[1728457875678,1.74460444,143.31,143.27,6.9797]
[1728457875979,8.72204253,143.32,143.28,6.9792]
[1728457876762,6.9774,143.32,143.28,6.9792]
[1728457879565,1.74464087,143.31,143.28,6.9792]
[1728457880485,1.74464087,143.31,143.27,6.9797]
[1728457881372,8.72204368,143.32,143.27,6.9797]
[1728457881681,1.74464368,143.32,143.28,1.39571309]
[1728457881886,7.27193832,143.34,143.28,8.37461309]
[1728457881887,8.72147028,143.33,143.28,8.37461309]
[1728457882063,14.24843832,143.34,143.3,6.9782]
[1728457882263,14.24843832,143.34,143.31,6.9778]
[1728457882264,7.27193832,143.34,143.31,6.9778]
[1728457882459,7.27193832,143.34,143.32,6.9773]
[1728457882775,7.27193832,143.34,143.31,6.9777]
[1728457884069,1.74418264,143.33,143.27,17.4487]
[1728457884289,6.9777,143.32,143.27,24.4281]
[1728457884768,6.9777,143.32,143.28,6.9792]
[1728457889386,1.74418264,143.33,143.27,17.4487]
[1728457889387,6.9779,143.31,143.27,24.4281]
[1728457889581,6.9774,143.32,143.27,24.4281]
[1728457889790,1.74455008,143.31,143.27,24.4281]
[1728457890593,8.72198729,143.32,143.28,1.39566983]
[1728457890891,8.72198729,143.32,143.27,24.4281]
[1728457891397,8.72198729,143.32,143.27,17.4487]
[1728457891597,6.9774,143.32,143.28,6.9792]
[1728457891773,6.9774,143.32,143.28,8.37486397]
[1728457892391,8.72247568,143.31,143.27,17.4487]
[1728457892591,1.74468749,143.3,143.27,17.4487]
[1728457892902,6.9779,143.31,143.27,24.4285]
[1728457893563,6.9777,143.32,143.27,24.4285]
[1728457893768,1.74460042,143.31,143.27,24.4285]
[1728457894373,1.74460042,143.31,143.27,17.4487]
[1728457894575,6.9782,143.31,143.27,17.4487]
[1728457894891,6.9782,143.31,143.27,24.4285]
[1728457896791,6.9782,143.31,143.28,16.4776]
[1728457897091,8.72308377,143.3,143.26,6.9802]
[1728457897296,1.74486625,143.29,143.25,6.9804]
[1728457897473,1.74486625,143.29,143.26,6.6612]
[1728457901897,7.27368411,143.31,143.27,1.39589184]
[1728457902079,8.7217648,143.33,143.29,6.9788]
[1728457902485,8.7217648,143.33,143.28,24.427]
[1728457903584,1.7448648,143.33,143.3,6.9782]
[1728457903784,1.7448648,143.33,143.28,17.4478]
[1728457904295,8.7218648,143.33,143.29,6.9787]
[1728457904897,8.7218648,143.33,143.28,24.4271]
[1728457905415,6.9791,143.29,143.26,6.6612]
[1728457905699,23.776884,143.32,143.26,13.6413]
[1728457905700,6.9784,143.3,143.26,13.6413]
[1728457906097,1.74473178,143.31,143.26,13.6413]
[1728457906413,6.9788,143.3,143.26,6.6612]
[1728457906700,1.74489315,143.29,143.26,6.6612]
[1728457907878,6.9789,143.29,143.26,6.6612]
[1728457908880,1.74490062,143.28,143.25,17.4511]
[1728457909203,1.74490062,143.28,143.24,23.4588]
[1728457909403,6.9789,143.29,143.24,23.4588]
[1728457909583,1.74494898,143.28,143.24,23.4588]
[1728457911402,6.9789,143.29,143.25,1.39595898]
[1728457911599,6.9789,143.29,143.25,6.9807]
[1728457911929,1.74494873,143.31,143.26,6.9802]
[1728457911930,8.72294873,143.31,143.26,6.9802]
[1728457912502,8.72294873,143.31,143.27,8.37540511]
[1728457912803,7.26419455,143.31,143.28,1.39578084]
[1728457913107,7.26419455,143.31,143.28,8.37478084]
[1728457913407,7.26419455,143.31,143.28,6.979]
[1728457914805,9.00878062,143.31,143.27,6.1231]
[1728457914982,9.00878062,143.31,143.27,13.1029]
[1728457916811,6.9789,143.29,143.27,6.1231]
[1728457917010,6.9785,143.3,143.27,6.1231]
[1728457917197,8.72328596,143.3,143.27,6.1231]
[1728457918216,1.74478596,143.3,143.24,22.7236]
[1728457918417,6.9793,143.28,143.24,29.7047]
[1728457918597,6.9793,143.28,143.24,22.7236]
[1728457918994,1.74494714,143.27,143.24,22.7236]
[1728457919198,6.9793,143.28,143.24,22.7236]
[1728457919692,6.9799,143.27,143.24,22.7236]
[1728457920608,1.7450426,143.28,143.2,0.8602309]
[1728457920821,23.776884,143.27,143.21,6.9827]
[1728457920990,8.72566544,143.26,143.21,6.9827]
[1728457921193,1.74526544,143.26,143.2,22.8255309]
[1728457921508,1.74526544,143.26,143.22,6.9819]
[1728457921810,8.72566544,143.26,143.22,8.37815058]
[1728457924118,8.72566544,143.26,143.21,24.4384]
[1728457925212,8.72566544,143.26,143.2,22.8255309]
[1728457925213,1.74526544,143.26,143.2,22.8255309]
[1728457925394,6.9818,143.23,143.2,22.8255309]
[1728457925599,6.9817,143.24,143.2,22.8255309]
[1728457925799,8.72740215,143.23,143.2,22.8255309]
[1728457926322,6.9823,143.22,143.2,7.5253309]
[1728457926909,1.74570215,143.23,143.2,7.5253309]
[1728457928034,8.72790215,143.23,143.2,0.8602309]
[1728457928319,1.74582553,143.22,143.2,0.8602309]
[1728457928522,23.776884,143.25,143.2,0.8602309]
[1728457928523,6.9822,143.23,143.2,0.8602309]
[1728457928697,1.7457412,143.22,143.2,0.8602309]
[1728457929919,30.759584,143.21,143.2,0.8602309]
[1728457930626,6.9823,143.22,143.2,0.8602309]
[1728457930826,20.3776,143.24,143.2,0.8602309]
[1728457930827,8.72859247,143.21,143.2,0.8602309]
[1728457931124,6.9827,143.21,143.2,0.8602309]
[1728457933227,14.2469727,143.21,143.2,0.8602309]
[1728457935830,38.0238567,143.21,143.2,0.8602309]
[1728457937772,14.2469727,143.21,143.2,0.8602309]
[1728457938036,38.0238567,143.21,143.2,0.8602309]
[1728457943149,7.2642727,143.21,143.2,0.8602309]
[1728457943449,19.19604849,143.27,143.2,0.8602309]
[1728457943450,6.9813,143.24,143.2,0.8602309]
[1728457943639,14.24186473,143.24,143.2,2.25669476]
[1728457943841,14.24186473,143.24,143.2,0.8602309]
[1728457944434,14.24186473,143.24,143.2,7.8433309]
[1728457945457,7.26056473,143.24,143.2,7.8433309]
[1728457946359,1.74538458,143.23,143.2,0.8602309]
[1728457946840,8.72708458,143.23,143.2,0.8602309]
[1728457947040,14.24196473,143.24,143.2,2.2566877]
[1728457947241,14.24196473,143.24,143.2,0.8602309]
[1728457948354,7.26056473,143.24,143.21,6.9826]
[1728457952158,7.26056473,143.24,143.2,25.3006309]
[1728457952159,9.00583579,143.24,143.2,25.3006309]
[1728457952341,14.24196473,143.24,143.2,25.3006309]
[1728457953738,7.26056473,143.24,143.21,1.3963817]
[1728457954059,6.9808,143.25,143.2,25.3006309]
[1728457954437,8.72621037,143.25,143.2,25.3006309]
[1728457958867,6.9808,143.25,143.2,25.3006309]
[1728457959041,6.9808,143.25,143.21,6.9826]
[1728457960556,1.74532342,143.24,143.2,25.3007309]
[1728457960757,6.9813,143.24,143.2,25.3007309]
[1728457963949,6.9808,143.25,143.21,8.37890869]
[1728457964469,6.9808,143.25,143.21,6.9826]
[1728457964766,8.72607462,143.25,143.2,25.3006309]
[1728457965166,6.9808,143.25,143.2,25.3006309]
[1728457965764,6.9808,143.25,143.21,6.9827]
[1728457965964,6.9808,143.25,143.22,1.39625113]
[1728457966668,6.9808,143.25,143.21,6.9827]
[1728457968056,1.74531726,143.24,143.2,0.8602309]
[1728457968263,6.9823,143.22,143.2,0.8602309]
[1728457969953,6.9827,143.21,143.2,0.8602309]
[1728457970753,8.72826407,143.22,143.2,0.8602309]
[1728457974748,6.9827,143.21,143.2,0.8602309]
[1728457977549,30.759584,143.21,143.2,0.8602309]
[1728457978846,38.01390569,143.21,143.2,0.8602309]
[1728457979058,39.76004164,143.21,143.2,0.8602309]
[1728457979983,38.01390569,143.21,143.2,0.8602309]
[1728457984168,6.9849,143.17,143.13,24.9754]
[1728457984771,1.74626498,143.16,143.13,31.9619]
[1728457984969,1.74626498,143.16,143.06,6.9897]
[1728457984970,6.9877,143.11,143.06,6.9897]
[1728457985169,24.326884,143.15,143.05,40.7509309]
[1728457985170,1.74683707,143.1,143.05,40.7509309]
[1728457985479,23.776884,143.13,143.05,40.7509309]
[1728457985665,1.74718992,143.12,143.05,37.7509309]
[1728457985986,6.9881,143.1,143.05,44.7413309]
[1728457986188,1.74718955,143.09,143.05,37.7509309]
[1728457986397,23.776884,143.11,143.05,22.4148]
[1728457986580,23.776884,143.13,143.05,22.4148]
[1728457986581,6.9895,143.08,143.05,22.4148]
[1728457986766,8.73719326,143.07,143.05,22.4148]
[1728457987097,6.9896,143.07,143.05,22.4148]
[1728457988090,6.9891,143.08,143.05,22.4148]
[1728457988285,6.9886,143.09,143.05,22.4148]
[1728457988494,1.7474445,143.08,143.05,22.4148]
[1728457989593,8.7365445,143.08,143.05,22.4148]
[1728457990091,1.7474445,143.08,143.05,22.4148]
[1728457990875,7.24902895,143.09,143.06,6.99]
[1728457991274,8.7350428,143.11,143.06,8.38778669]
[1728457991473,15.98313397,143.11,143.06,6.99]
[1728457993775,30.765084,143.1,143.05,29.4052]
[1728457993970,1.74738015,143.09,143.05,29.4052]
[1728457994193,30.765084,143.1,143.05,29.4052]
[1728457994370,14.23579117,143.11,143.06,6.9899]
[1728457994701,1.74723457,143.1,143.06,6.9899]
[1728457995175,8.99532249,143.11,143.07,6.9895]
[1728457997304,7.24809117,143.11,143.07,17.4737]
[1728457997471,1.74707571,143.11,143.08,6.9889]
[1728457998173,14.23410061,143.12,143.08,6.9889]
[1728457998507,1.74704798,143.11,143.08,6.9889]
[1728457999580,1.74704798,143.11,143.07,17.4737]
[1728457999787,8.73494798,143.11,143.07,17.4737]
[1728457999985,6.9879,143.11,143.07,17.4737]
[1728458000183,6.9879,143.11,143.07,24.4631]
[1728458001184,1.74716228,143.1,143.07,17.4737]
[1728458001498,8.73536228,143.1,143.05,29.4052]
[1728458001702,1.74739423,143.09,143.05,22.4148]
[1728458002001,6.9886,143.09,143.05,22.4148]
[1728458002295,6.9886,143.09,143.05,29.4052]
[1728458002480,1.74737358,143.08,143.05,22.4148]
[1728458003794,7.24605208,143.09,143.07,6.9893]
[1728458003980,8.73534172,143.11,143.07,6.9893]
[1728458004179,1.7471648,143.1,143.07,6.9893]
[1728458004382,7.24514041,143.11,143.07,6.9893]
[1728458004590,8.99230642,143.11,143.07,6.9893]
[1728458005795,7.24514041,143.11,143.09,6.9882]
[1728458005974,6.9873,143.12,143.08,24.4612]
[1728458006173,1.74698975,143.11,143.08,24.4612]
[1728458007080,1.74698975,143.11,143.05,22.4148]
[1728458007284,7.25278077,143.12,143.05,22.4148]
[1728458007491,7.25278077,143.12,143.09,6.9886]
[1728458007701,1.74703628,143.11,143.08,6.9889]
[1728458008000,14.23998077,143.12,143.08,6.9889]
[1728458008301,7.25278077,143.12,143.08,6.9889]
[1728458008488,1.74700601,143.11,143.07,24.4625]
[1728458013617,7.25278077,143.12,143.07,17.4731]
[1728458013786,1.74686014,143.14,143.11,6.9876]
[1728458013987,1.7467294,143.15,143.11,6.9876]
[1728458014181,7.24467348,143.14,143.11,6.9876]
[1728458014494,7.24467348,143.14,143.1,6.6486]
[1728458014699,7.24467348,143.14,143.12,6.9867]
[1728458015219,7.24467348,143.14,143.11,17.4683]
[1728458015789,6.987,143.13,143.1,6.6486]
[1728458016007,14.23087348,143.14,143.1,13.6366]
[1728458016895,8.73367016,143.13,143.1,6.6486]
[1728458017096,6.987,143.13,143.1,6.6486]
[1728458017393,14.23097348,143.14,143.1,6.6486]
[1728458017606,1.74676777,143.13,143.1,6.6486]
[1728458019510,1.74676777,143.13,143.1,13.6367]
[1728458021314,1.74676777,143.13,143.1,6.6486]
[1728458021315,8.73346777,143.13,143.1,6.6486]
[1728458021618,1.74682227,143.12,143.1,6.6486]
[1728458022293,1.74693457,143.13,143.1,6.6486]
[1728458023214,14.23087348,143.14,143.1,6.6486]
[1728458023411,14.23087348,143.14,143.1,13.6366]
[1728458023590,7.24467348,143.14,143.11,24.4556]
[1728458025698,7.24467348,143.14,143.11,17.4681]
[1728458026718,14.23087348,143.14,143.1,13.6365]
[1728458027012,1.7467263,143.13,143.1,13.6365]
[1728458027512,14.23087348,143.14,143.1,13.6365]
[1728458028419,1.74672312,143.13,143.1,13.6365]
[1728458028723,14.23087348,143.14,143.1,13.6365]
[1728458028895,1.74672439,143.13,143.1,6.6486]
[1728458029908,1.74672439,143.13,143.08,17.4719]
[1728458030120,8.73382439,143.13,143.08,24.4609]
[1728458031106,1.74672439,143.13,143.08,24.4609]
[1728458031323,6.9873,143.12,143.08,24.4609]
[1728458031494,7.24467348,143.14,143.08,24.4609]
[1728458031816,8.73353636,143.13,143.08,24.4609]
[1728458032394,1.74683636,143.13,143.08,24.4609]
[1728458032594,6.9872,143.12,143.08,24.4609]
[1728458033916,8.73363636,143.13,143.08,24.4609]
[1728458034603,6.9878,143.11,143.07,6.9895]
[1728458035302,8.73484952,143.11,143.07,6.9895]
[1728458042025,1.74704952,143.11,143.06,13.174]
[1728458042230,6.9882,143.1,143.06,6.184]
[1728458042414,1.74726139,143.09,143.06,6.184]
[1728458043217,1.74726139,143.09,143.06,13.1739]
[1728458043425,8.73596139,143.09,143.06,6.184]
[1728458043631,1.74745,143.08,143.06,6.184]
[1728458045029,6.9881,143.1,143.06,6.184]
[1728458045326,1.74726885,143.09,143.06,6.184]
[1728458046203,1.74726885,143.09,143.06,13.1739]
[1728458046728,1.74726885,143.09,143.06,6.184]
[1728458047503,14.22215435,143.1,143.06,6.184]
[1728458048323,1.74729251,143.09,143.06,6.184]
[1728458054328,14.22215435,143.1,143.06,7.58189509]
[1728458054808,1.74729815,143.09,143.06,6.184]
[1728458055802,7.23405435,143.1,143.06,13.1739]
[1728458056307,8.98131429,143.1,143.06,13.1739]
[1728458056519,1.74729224,143.09,143.06,13.1739]
[1728458059326,7.23405435,143.1,143.06,6.184]
[1728458059533,7.23405435,143.1,143.06,13.1737]
[1728458059720,7.23405435,143.1,143.07,6.9895]
[1728458060418,8.98118096,143.1,143.06,13.1739]
[1728458061114,15.96938096,143.1,143.06,13.1739]
[1728458061522,1.74727013,143.09,143.06,6.184]
[1728458061821,8.73587013,143.09,143.06,6.184]
[1728458062616,6.9886,143.09,143.06,6.184]
[1728458062816,8.73591156,143.09,143.06,6.184]
[1728458063449,1.74731156,143.09,143.05,15.8828]
[1728458063623,1.74731156,143.09,143.02,23.5491]
[1728458064114,7.23506825,143.08,143.02,23.5491]
[1728458064311,1.74755208,143.07,143.02,23.5491]
[1728458065134,8.73715208,143.07,143.03,6.9915]
[1728458070045,8.73715208,143.07,143.03,8.38956857]
[1728458071740,8.73715208,143.07,143.03,6.9915]
[1728458072119,8.73715208,143.07,143.03,8.38963807]
[1728458073258,8.73715208,143.07,143.03,6.9915]
[1728458073725,8.73715208,143.07,143.03,8.38956898]
[1728458075436,8.73715208,143.07,143.03,8.38956898]
[1728458075634,8.98265674,143.08,143.03,1.39807079]
[1728458075830,8.98265674,143.08,143.05,6.9904]
[1728458075831,7.23506825,143.08,143.05,6.9904]
[1728458076339,14.22436825,143.08,143.04,24.468]
[1728458080245,7.23506825,143.08,143.06,6.9897]
[1728458080448,7.23506825,143.08,143.05,6.9904]
[1728458082741,8.98247035,143.08,143.04,17.4771]
[1728458082941,14.22416825,143.08,143.04,24.468]
[1728458083246,1.74749061,143.07,143.04,24.468]
[1728458084940,14.22416825,143.08,143.04,24.468]
[1728458086241,14.22416825,143.08,143.04,17.4771]
[1728458086242,8.73700631,143.07,143.04,17.4771]
[1728458086445,8.73700631,143.07,143.03,6.9915]
[1728458086649,6.99,143.06,143.02,6.0699]
[1728458086952,8.73710631,143.07,143.02,13.0619]
[1728458087557,6.9905,143.06,143.02,6.0699]
[1728458088448,6.9905,143.06,143.02,13.0618]
[1728458090331,1.74771375,143.05,143.02,13.0618]
[1728458093540,1.74771375,143.05,143.02,6.0699]
[1728458093751,8.73831375,143.05,143.02,6.0699]
[1728458093935,6.9906,143.05,143.02,6.0699]
[1728458094252,30.767084,143.06,143.02,6.0699]
[1728458094438,1.74773622,143.05,143.02,6.0699]
[1728458095645,8.73823622,143.05,143.02,6.0699]
[1728458097155,6.9917,143.03,142.97,21.7277]
[1728458097347,6.9916,143.03,142.98,24.478]
[1728458097549,8.7396944,143.03,142.98,24.478]
[1728458097758,6.9916,143.03,142.98,24.478]
[1728458098145,31.02657931,143.06,142.98,24.478]
[1728458098146,32.51707845,143.02,142.98,24.478]
[1728458098455,30.768984,143.02,142.98,24.478]
[1728458099755,30.768984,143.02,142.98,25.87659073]
[1728458100476,30.768984,143.02,142.98,17.4844]
[1728458100758,6.9921,143.02,142.98,24.4782]
[1728458101150,1.74821407,143.01,142.98,17.4844]